Workbook

Sheet plan PTSz SP
D1: PLAN STUDIÓW NR I | AB1: ZATWIERDZAM
A2: WYDZIAŁ INŻYNIERII MECHANICZNEJ
D3: PROFIL KSZTAŁCENIA: | I3: PRAKTYCZNY
D4: POZIOM STUDIÓW: | I4: PIERWSZEGO STOPNIA (3,5-letnie inżynierskie)
A5: UNIWERSYTET TECHNOLOGICZNO-PRZYRODNICZY | D5: FORMA STUDIÓW: | I5: STUDIA STACJONARNE | AB5: PROREKTOR
A6: IM. J. i J. ŚNIADECKICH | D6: KIERUNEK: | I6: PRZETWÓRSTWO TWORZYW SZTUCZNYCH | AB6: ds. Dydaktycznych i Studenckich
A7: W BYDGOSZCZY | D7: SPECJALNOŚĆ: | I7: 1. TECHNOLOGICZNA
I8: 2. NARZĘDZIOWA CAD/CAM
AB9: Bydgoszcz dn. ……………………..
A11: Pozycja planu | B11: NAZWA PRZEDMIOTU | D11: Liczba | G11: GODZINY | L11: ROZKŁAD ZAJĘĆ w SEMESTRZE
G12: Razem | H12: w tym | L12: sem. I | P12: sem. II | T12: sem. III | X12: sem. IV | AB12: sem. V | AF12: sem. VI | AJ12: sem. VII
D13: egza-mi-nów | E13: zali-czeń | F13: pkt. ECTS | H13: W | I13: Ć | J13: L | K13: P / S | L13: Liczba godzin tygodniowo (semestr I - VII po 15 tygodni)
L14: W | M14: Ć | N14: L | O14: P/S | P14: W | Q14: Ć | R14: L | S14: P/S | T14: W | U14: Ć | V14: L | W14: P/S | X14: W | Y14: Ć | Z14: L | AA14: P/S | AB14: W | AC14: Ć | AD14: L | AE14: P/S | AF14: W | AG14: Ć | AH14: L | AI14: P/S | AJ14: W | AK14: Ć | AL14: L | AM14: P/S
A16: A. | B16: PRZEDMIOTY OGÓLNE | AN16: suma
A17: 1. | B17: Język obcy2 | D17: 1 | E17: 3 | F17: 5 | G17: =SUM(H17:K17) -> 120 | J17: =N17+R17+V17+Z17+AD17+AH17+AL17 -> 120 | V17: 30 | Z17: 30 | AD17: 30 | AH17: 30 | AN17: =sumaECTS(L17:AM17) -> 5
A18: 2. | B18: Przedmioty humanistyczne do wyboru3 | E18: 2 | F18: 4 | G18: =SUM(H18:K18) -> 45 | H18: =L18+P18+T18+X18+AB18+AF18+AJ18 -> 45 | L18: 30 | P18: 15 | AN18: =sumaECTS(L18:AM18) -> 4
A19: 3. | B19: Wychowanie fizyczne4 | E19: 2 | F19: 0 | G19: 60 | I19: =M19+Q19+U19+Y19+AC19+AG19+AK19 -> 60 | U19: 30 | Y19: 30 | AN19: 0
A20: 4. | B20: Technologia informacyjna | E20: 2 | F20: 3 | G20: 30 | H20: 15 | J20: =N20+R20+V20+Z20+AD20+AH20+AL20 -> 15 | L20: 15 | N20: 15 | AN20: 3
A21: 5. | B21: BHP i ergonomia | E21: 1 | F21: 2 | G21: 15 | H21: 15 | L21: 15 | AN21: 2
A22: 6. | B22: Ochrona własności intelektualnej | E22: 1 | F22: 1 | G22: 15 | H22: 15 | AJ22: 15 | AN22: 1
A23: 7. | B23: Podstawy przedsiębiorczości | E23: 1 | F23: 1 | G23: 15 | H23: 15 | AJ23: 15 | AN23: 1
A24: 8. | B24: Komunikacja społeczna | E24: 1 | F24: 1 | G24: 15 | H24: 15 | AJ24: 15 | AN24: 1
B25: RAZEM | D25: =SUM(D17:D24) -> 1 | E25: =SUM(E17:E24) -> 13 | F25: =SUM(F17:F24) -> 17 | G25: =SUM(G17:G24) -> 315 | H25: 120 | I25: 60 | J25: 135 | K25: 0 | L25: 60 | M25: 0 | N25: 15 | O25: 0 | P25: 15 | Q25: 0 | R25: 0 | S25: 0 | T25: 0 | U25: 30 | V25: 30 | W25: 0 | X25: 0 | Y25: 30 | Z25: 30 | AA25: 0 | AB25: 0 | AC25: 0 | AD25: 30 | AE25: 0 | AF25: 0 | AG25: 0 | AH25: 30 | AI25: 0 | AJ25: 45 | AK25: 0 | AL25: 0 | AM25: 0
L26: =SUM(L25:O25) -> 75 | P26: =SUM(P25:S25) -> 15 | T26: =SUM(T25:W25) -> 60 | Y26: =SUM(X25:AA25) -> 60 | AB26: =SUM(AB25:AE25) -> 30 | AF26: =SUM(AF25:AI25) -> 30 | AJ26: =SUM(AJ25:AM25) -> 45 | AO26: =SUM(AN17:AN24) -> 17
A27: PODSUMOWANIE ARKUSZA 1 | D27: egza-mi-nów | E27: zali-czeń | F27: pkt. ECTS | G27: Razem | H27: W | I27: Ć | J27: L | K27: P / S | L27: sem. I | P27: sem. II | T27: sem. III | X27: sem. IV | AB27: sem. V | AF27: sem. VI | AJ27: sem. VII
L28: W | M28: Ć | N28: L | O28: P/S | P28: W | Q28: Ć | R28: L | S28: P/S | T28: W | U28: Ć | V28: L | W28: P/S | X28: W | Y28: Ć | Z28: L | AA28: P/S | AB28: W | AC28: Ć | AD28: L | AE28: P/S | AF28: W | AG28: Ć | AH28: L | AI28: P/S | AJ28: W | AK28: Ć | AL28: L | AM28: P/S
D30: =SUM(D25) -> 1 | E30: 13 | F30: =SUM(F25) -> 17 | G30: 315 | H30: 120 | I30: 60 | J30: 135 | K30: 0 | L30: 60 | M30: 0 | N30: 15 | O30: 0 | P30: 15 | Q30: 0 | R30: 0 | S30: 0 | T30: 0 | U30: 30 | V30: 30 | W30: 0 | X30: 0 | Y30: 30 | Z30: 30 | AA30: 0 | AB30: 0 | AC30: 0 | AD30: 30 | AE30: 0 | AF30: 0 | AG30: 0 | AH30: 30 | AI30: 0 | AJ30: 45 | AK30: 0 | AL30: 0 | AM30: 0 | AN30: suma
L31: =SUM(L30:O30) -> 75 | P31: =SUM(P30:S30) -> 15 | T31: =SUM(T30:W30) -> 60 | X31: =SUM(X30:AA30) -> 60 | AB31: =SUM(AB30:AE30) -> 30 | AF31: =SUM(AF30:AI30) -> 30 | AJ31: =SUM(AJ30:AM30) -> 45 | AN31: =SUM(L31:AM31) -> 315
D32: Liczba: | G32: egzaminów | L32: 0 | P32: 0 | T32: 0 | X32: 0 | AB32: 0 | AF32: 1 | AJ32: 0 | AN32: =SUM(L32:AM32) -> 1
G33: zaliczeń | L33: 4 | P33: 1 | T33: 2 | X33: 2 | AB33: 1 | AF33: 0 | AJ33: 3 | AN33: =SUM(L33:AM33) -> 13
G34: pkt. ECTS | L34: 7 | P34: 2 | T34: 1 | X34: 1 | AB34: 1 | AF34: 2 | AJ34: 3 | AN34: =SUM(L34:AM34) -> 17
A36: UWAGI: | AC36: Obowiązuje od roku akademickiego: 2018/2019
B37: 1. | C37: Dla studentów I roku studiów stacjonarnych I stopnia wszystkie formy zajęć dydaktycznych przewidziane w planie studiów są obowiązkowe. Na wyższych latach obowiązkowe są: ćwiczenia audytoryjne i laboratoryjne,
C38: lektoraty, zajęcia: sportowe, terenowe, projektowe, plenerowe i seminaria. | AC38: Legenda:
B39: 2. | C39: Język obcy do wyboru spośród: 1. Język angielski, 2. Język niemiecki, | AC39: W | AD39: - wykład
B40: 3. | C40: Przedmioty humanistyczne do wyboru spośród: semestr I: 1. Psychologia, 2. Filozofia; semestr II: 1. Elementy prawa, 2. Socjologia ogólna, | AC40: Ć | AD40: - ćwiczenia audytoryjne
B41: 4. | C41: Wychowanie fizyczne - studenci dokonują wyboru jednej formy zajęć z oferty SWFiSW. | AC41: L | AD41: - ćwiczenia laboratoryjne, lektorat języków obcych
B42: 5. | C42: Studentów obowiązuje zaliczenie: 1 dzień w tygodniu praktyki zawodowej podczas III sem. (2pkt. ECTS); 1 dzień w tygodniu praktyki zawodowej podczas IV sem. (2 pkt. ECTS) oraz 6 tygodni praktyki zawodowej po IV sem. (6 pkt. ECTS); 2 dni w tygodniu praktyki zawodowej podczas V sem. (4 pkt. ECTS); 2 dni w tygodniu praktyki zawodowej podczas VI sem. (4 pkt. ECTS) oraz 6 tygodni praktyki zawodowej po VI sem. (6 pkt ECTS); 2 dni w tygodniu praktyki zawodowej podczas VII sem. (4 pkt. ECTS). | AC42: P S T | AD42: - ćwiczenia projektowe - seminarium - zajęcia terenowe
AD43: - egzamin
AB46: ARKUSZ 1
D47: PLAN STUDIÓW NR I | AB47: ZATWIERDZAM
A48: WYDZIAŁ INŻYNIERII MECHANICZNEJ
D49: PROFIL KSZTAŁCENIA: | I49: PRAKTYCZNY
D50: POZIOM STUDIÓW: | I50: PIERWSZEGO STOPNIA (3,5-letnie inżynierskie)
A51: UNIWERSYTET TECHNOLOGICZNO-PRZYRODNICZY | D51: FORMA STUDIÓW: | I51: STUDIA STACJONARNE | AB51: PROREKTOR
A52: IM. J. i J. ŚNIADECKICH | D52: KIERUNEK: | I52: PRZETWÓRSTWO TWORZYW SZTUCZNYCH | AB52: ds. Dydaktycznych i Studenckich
A53: W BYDGOSZCZY | D53: SPECJALNOŚĆ: | I53: 1. TECHNOLOGICZNA
I54: 2. NARZĘDZIOWA CAD/CAM
AB55: Bydgoszcz dn. ……………………..
A57: Pozycja planu | B57: NAZWA PRZEDMIOTU | D57: Liczba | G57: GODZINY | L57: ROZKŁAD ZAJĘĆ w SEMESTRZE
G58: Razem | H58: w tym | L58: sem. I | P58: sem. II | T58: sem. III | X58: sem. IV | AB58: sem. V | AF58: sem. VI | AJ58: sem. VII
D59: egza-mi-nów | E59: zali-czeń | F59: pkt. ECTS | H59: W | I59: Ć | J59: L | K59: P / S | L59: Liczba godzin tygodniowo (semestr I - VII po 15 tygodni)
L60: W | M60: Ć | N60: L | O60: P/S | P60: W | Q60: Ć | R60: L | S60: P/S | T60: W | U60: Ć | V60: L | W60: P/S | X60: W | Y60: Ć | Z60: L | AA60: P/S | AB60: W | AC60: Ć | AD60: L | AE60: P/S | AF60: W | AG60: Ć | AH60: L | AI60: P/S | AJ60: W | AK60: Ć | AL60: L | AM60: P/S
A62: B. | B62: PRZEDMIOTY PODSTAWOWE | AN62: suma
A63: 1. | B63: Matematyka inżynierska | D63: 1 | E63: 3 | F63: 11 | G63: =SUM(H63:K63) -> 135 | H63: =L63+P63+T63+X63+AB63+AF63+AJ63 -> 60 | I63: =M63+Q63+U63+Y63+AC63+AG63+AK63 -> 75 | K63: =IF(SUM(O63+S63+W63+AA63+AE63+AI63+AM63+AQ63)=0,"",SUM(O63+S63+W63+AA63+AE63+AI63+AM63+AQ63)) ->  | L63: 30 | M63: 45 | P63: 30 | Q63: 30 | AN63: =sumaECTS(L63:AM63) -> 11
A64: 2. | B64: Fizyka | D64: 1 | E64: 2 | F64: 7 | G64: =SUM(H64:K64) -> 75 | H64: =L64+P64+T64+X64+AB64+AF64+AJ64 -> 30 | I64: =M64+Q64+U64+Y64+AC64+AG64+AK64 -> 30 | J64: =N64+R64+V64+Z64+AD64+AH64+AL64 -> 15 | L64: 30 | M64: 30 | R64: 15 | AN64: 7
A65: 3. | B65: Statystyka inżynierska | E65: 2 | F65: 3 | G65: 30 | H65: 15 | I65: 15 | T65: 15 | U65: 15 | AN65: 3
A66: 4. | B66: Mechanika techniczna | D66: 1 | E66: 2 | F66: 6 | G66: 75 | H66: 30 | I66: 30 | J66: 15 | P66: 30 | Q66: 30 | R66: 15 | AN66: 6
A67: 5. | B67: Podstawy konstrukcji maszyn | D67: 1 | E67: 3 | F67: 9 | G67: 90 | H67: 45 | I67: 30 | K67: 15 | T67: 30 | U67: 30 | X67: 15 | AA67: 15 | AN67: 9
A68: 6. | B68: Termodynamika techniczna | D68: 1 | E68: 2 | F68: 4 | G68: 45 | H68: 15 | I68: 15 | J68: 15 | X68: 15 | Y68: 15 | Z68: 15 | AN68: =sumaECTS(L68:AM68) -> 4
A69: 7. | B69: Mechanika płynów | D69: 1 | E69: 2 | F69: 6 | G69: 60 | H69: 30 | I69: 15 | J69: 15 | T69: 30 | U69: 15 | V69: 15 | AN69: 6
B70: RAZEM | D70: =SUM(D63:D69) -> 6 | E70: =SUM(E63:E69) -> 16 | F70: =SUM(F63:F69) -> 46 | G70: =SUM(G63:G69) -> 510 | H70: 225 | I70: 210 | J70: 60 | K70: 15 | L70: 60 | M70: 75 | N70: 0 | O70: 0 | P70: 60 | Q70: 60 | R70: 30 | S70: 0 | T70: 75 | U70: 60 | V70: 15 | W70: 0 | X70: 30 | Y70: 15 | Z70: 15 | AA70: 15 | AB70: 0 | AC70: 0 | AD70: 0 | AE70: 0 | AF70: 0 | AG70: 0 | AH70: 0 | AI70: 0 | AJ70: 0 | AK70: 0 | AL70: 0 | AM70: 0
L71: =SUM(L70:O70) -> 135 | P71: =SUM(P70:S70) -> 150 | T71: =SUM(T70:W70) -> 150 | X71: =SUM(X70:AA70) -> 75 | AB71: =SUM(AB70:AE70) -> 0 | AF71: =SUM(AF70:AI70) -> 0 | AJ71: =SUM(AJ70:AM70) -> 0 | AO71: =SUM(AN63:AN69) -> 46
A72: PODSUMOWANIE ARKUSZA 1+2 | D72: egza-mi-nów | E72: zali-czeń | F72: pkt. ECTS | G72: Razem | H72: W | I72: Ć | J72: L | K72: P / S | L72: sem. I | P72: sem. II | T72: sem. III | X72: sem. IV | AB72: sem. V | AF72: sem. VI | AJ72: sem. VII
L73: W | M73: Ć | N73: L | O73: P/S | P73: W | Q73: Ć | R73: L | S73: P/S | T73: W | U73: Ć | V73: L | W73: P/S | X73: W | Y73: Ć | Z73: L | AA73: P/S | AB73: W | AC73: Ć | AD73: L | AE73: P/S | AF73: W | AG73: Ć | AH73: L | AI73: P/S | AJ73: W | AK73: Ć | AL73: L | AM73: P/S
D75: =SUM(D25+D70) -> 7 | E75: =SUM(E25+E70) -> 29 | F75: 63 | G75: 825 | H75: 345 | I75: 270 | J75: 195 | K75: 15 | L75: 120 | M75: 75 | N75: 15 | O75: 0 | P75: 75 | Q75: 60 | R75: 30 | S75: 0 | T75: 75 | U75: 90 | V75: 45 | W75: 0 | X75: 30 | Y75: 45 | Z75: 45 | AA75: 15 | AB75: 0 | AC75: 0 | AD75: 30 | AE75: 0 | AF75: 0 | AG75: 0 | AH75: 30 | AI75: 0 | AJ75: 45 | AK75: 0 | AL75: 0 | AM75: 0 | AN75: suma
L76: =SUM(L75:O75) -> 210 | P76: =SUM(P75:S75) -> 165 | T76: =SUM(T75:W75) -> 210 | X76: =SUM(X75:AA75) -> 135 | AB76: =SUM(AB75:AE75) -> 30 | AF76: =SUM(AF75:AI75) -> 30 | AJ76: =SUM(AJ75:AM75) -> 45 | AN76: =SUM(L76:AM76) -> 825
D77: Liczba: | G77: egzaminów | L77: 1 | P77: 2 | T77: 1 | X77: 2 | AB77: 0 | AF77: 1 | AJ77: 0 | AN77: =SUM(L77:AM77) -> 7
G78: zaliczeń | L78: 7 | P78: 5 | T78: 8 | X78: 5 | AB78: 1 | AF78: 0 | AJ78: 3 | AN78: =SUM(L78:AM78) -> 29
G79: pkt. ECTS | L79: 18 | P79: 15 | T79: 16 | X79: 8 | AB79: 1 | AF79: 2 | AJ79: 3 | AN79: =SUM(L79:AM79) -> 63
A81: UWAGI: | AC81: Obowiązuje od roku akademickiego: 2018/2019
B82: 1. | C82: Dla studentów I roku studiów stacjonarnych I stopnia wszystkie formy zajęć dydaktycznych przewidziane w planie studiów są obowiązkowe. Na wyższych latach obowiązkowe są: ćwiczenia audytoryjne i laboratoryjne,
C83: lektoraty, zajęcia: sportowe, terenowe, projektowe, plenerowe i seminaria. | AC83: Legenda:
B84: 2. | C84: Język obcy do wyboru spośród: 1. Język angielski, 2. Język niemiecki, | AC84: W | AD84: - wykład
B85: 3. | C85: Przedmioty humanistyczne do wyboru spośród: semestr I: 1. Psychologia, 2. Filozofia; semestr II: 1. Elementy prawa, 2. Socjologia ogólna, | AC85: Ć | AD85: - ćwiczenia audytoryjne
B86: 4. | C86: Wychowanie fizyczne - studenci dokonują wyboru jednej formy zajęć z oferty SWFiSW. | AC86: L | AD86: - ćwiczenia laboratoryjne, lektorat języków obcych
B87: 5. | C87: Studentów obowiązuje zaliczenie: 1 dzień w tygodniu praktyki zawodowej podczas III sem. (2pkt. ECTS); 1 dzień w tygodniu praktyki zawodowej podczas IV sem. (2 pkt. ECTS) oraz 6 tygodni praktyki zawodowej po IV sem. (6 pkt. ECTS); 2 dni w tygodniu praktyki zawodowej podczas V sem. (4 pkt. ECTS); 2 dni w tygodniu praktyki zawodowej podczas VI sem. (4 pkt. ECTS) oraz 6 tygodni praktyki zawodowej po VI sem. (6 pkt ECTS); 2 dni w tygodniu praktyki zawodowej podczas VII sem. (4 pkt. ECTS). | AC87: P S T | AD87: - ćwiczenia projektowe - seminarium - zajęcia terenowe
AD88: - egzamin
AB91: ARKUSZ 2
D92: PLAN STUDIÓW NR I | AB92: ZATWIERDZAM
A93: WYDZIAŁ INŻYNIERII MECHANICZNEJ
D94: PROFIL KSZTAŁCENIA: | I94: PRAKTYCZNY
D95: POZIOM STUDIÓW: | I95: PIERWSZEGO STOPNIA (3,5-letnie inżynierskie)
A96: UNIWERSYTET TECHNOLOGICZNO-PRZYRODNICZY | D96: FORMA STUDIÓW: | I96: STUDIA STACJONARNE | AB96: PROREKTOR
A97: IM. J. i J. ŚNIADECKICH | D97: KIERUNEK: | I97: PRZETWÓRSTWO TWORZYW SZTUCZNYCH | AB97: ds. Dydaktycznych i Studenckich
A98: W BYDGOSZCZY | D98: SPECJALNOŚĆ: | I98: 1. TECHNOLOGICZNA
I99: 2. NARZĘDZIOWA CAD/CAM
AB100: Bydgoszcz dn. ……………………..
A102: Pozycja planu | B102: NAZWA PRZEDMIOTU | D102: Liczba | G102: GODZINY | L102: ROZKŁAD ZAJĘĆ w SEMESTRZE
G103: Razem | H103: w tym | L103: sem. I | P103: sem. II | T103: sem. III | X103: sem. IV | AB103: sem. V | AF103: sem. VI | AJ103: sem. VII
D104: egza-mi-nów | E104: zali-czeń | F104: pkt. ECTS | H104: W | I104: Ć | J104: L | K104: P / S | L104: Liczba godzin tygodniowo (semestr I - VII po 15 tygodni)
L105: W | M105: Ć | N105: L | O105: P/S | P105: W | Q105: Ć | R105: L | S105: P/S | T105: W | U105: Ć | V105: L | W105: P/S | X105: W | Y105: Ć | Z105: L | AA105: P/S | AB105: W | AC105: Ć | AD105: L | AE105: P/S | AF105: W | AG105: Ć | AH105: L | AI105: P/S | AJ105: W | AK105: Ć | AL105: L | AM105: P/S
A107: C. | B107: PRZEDMIOTY KIERUNKOWE | AN107: suma
A108: 1. | B108: Materiały inżynierskie z elementami chemii | D108: 1 | E108: 1 | F108: 6 | G108: =SUM(H108:K108) -> 75 | H108: =L108+P108+T108+X108+AB108+AF108+AJ108 -> 45 | J108: =N108+R108+V108+Z108+AD108+AH108+AL108 -> 30 | L108: 45 | N108: 30 | AN108: =sumaECTS(L108:AM108) -> 6
A109: 2. | B109: Podstawy obróbki materiałów | E109: 1 | F109: 1 | G109: =SUM(H109:K109) -> 15 | J109: =N109+R109+V109+Z109+AD109+AH109+AL109 -> 15 | N109: 15 | AN109: =sumaECTS(L109:AM109) -> 1
A110: 3. | B110: Podstawy maszynoznawstwa | E110: 1 | F110: 2 | G110: 15 | H110: =L110+P110+T110+X110+AB110+AF110+AJ110 -> 15 | L110: 15 | AN110: =sumaECTS(L110:AM110) -> 2
A111: 4. | B111: Grafika inżynierska | E111: 3 | F111: 5 | G111: 90 | H111: 30 | J111: 60 | L111: 30 | N111: 30 | R111: 30 | AN111: =sumaECTS(L111:AM111) -> 5
A112: 5. | B112: Metaloznawstwo | E112: 2 | F112: 4 | G112: 60 | H112: 30 | J112: 30 | P112: 30 | R112: 30 | AN112: 4
A113: 6. | B113: Eletrotechnika i elektronika | E113: 2 | F113: 2 | G113: 30 | H113: 15 | J113: 15 | P113: 15 | R113: 15 | AN113: 2
A114: 7. | B114: Tworzywa polimerowe | D114: 1 | E114: 1 | F114: 4 | G114: 60 | H114: 30 | J114: 30 | P114: 30 | R114: 30 | AN114: 4
A115: 8. | B115: Obróbka cieplna i plastyczna | E115: 2 | F115: 3 | G115: 45 | H115: 30 | J115: 15 | P115: 30 | R115: 15 | AN115: 3
A116: 9. | B116: Technologie przetwórstwa tworzyw | D116: 1 | E116: 3 | F116: 7 | G116: 90 | H116: 45 | I116: 15 | J116: 30 | T116: 30 | X116: 15 | Y116: 15 | Z116: 30 | AN116: 7
A117: 10. | B117: CAD | E117: 2 | F117: 4 | G117: 45 | J117: 30 | K117: =O117+W117+S117+AA117+AE117+AM117 -> 15 | V117: 30 | W117: 15 | AN117: 4
A118: 11. | B118: Odlewnictwo i spawalnictwo | D118: 1 | E118: 1 | F118: 3 | G118: 45 | H118: 30 | J118: 15 | X118: 30 | Z118: 15 | AN118: 3
A119: 12. | B119: Metodyka Design Thinking | E119: 2 | F119: 2 | G119: 30 | J119: 15 | K119: 15 | Z119: 15 | AA119: 15 | AN119: 2
A120: 13. | B120: Systemy kontroli jakości | E120: 2 | F120: 3 | G120: 45 | H120: 30 | K120: 15 | X120: 30 | AA120: 15 | AN120: 3
A121: 14. | B121: Metrologia | E121: 2 | F121: 2 | G121: 30 | H121: 15 | J121: 15 | X121: 15 | Z121: 15 | AN121: 2
A122: 15. | B122: Zaawansowane techniki badań materiałów | E122: 2 | F122: 3 | G122: 30 | H122: 15 | J122: 15 | AB122: 15 | AD122: 15 | AN122: 3
A123: 16. | B123: Projektowanie i konstrukcja wytworów z tworzyw polimerowych | E123: 2 | F123: 3 | G123: 45 | H123: 15 | K123: 30 | AB123: 15 | AE123: 30 | AN123: 3
A124: 17. | B124: Metody elementów skończonych | E124: 2 | F124: 3 | G124: 45 | H124: 15 | J124: 30 | AB124: 15 | AD124: 30 | AN124: 3
A125: 18. | B125: Praktyka zawodowa5 | E125: 7 | F125: 25 | T125: x | X125: x | AB125: x | AF125: x | AJ125: x | AN125: =sumaECTS(L125:AM125) -> 25
A126: 19. | B126: Przygotowanie i złożenie pracy dyplomowej oraz przygotowanie do egzaminu dyplomowego | E126: 1 | F126: 15 | AJ126: x | AN126: =sumaECTS(L126:AM126) -> 15
A127: 20. | B127: Obróbka skrawaniem | D127: 1 | E127: 1 | F127: 5 | G127: 45 | H127: 30 | J127: 15 | T127: 30 | V127: 15 | AN127: =sumaECTS(L127:AM127) -> 5
B128: RAZEM | D128: =SUM(D108:D127) -> 5 | E128: =SUM(E108:E127) -> 40 | F128: =SUM(F108:F127) -> 102 | G128: 840 | H128: 390 | I128: 15 | J128: 360 | K128: 75 | L128: =SUM(L108:L127) -> 90 | M128: 0 | N128: 75 | O128: 0 | P128: 105 | Q128: 0 | R128: 120 | S128: 0 | T128: 60 | U128: 0 | V128: 45 | W128: 15 | X128: 90 | Y128: 15 | Z128: 75 | AA128: 30 | AB128: 45 | AC128: 0 | AD128: 45 | AE128: 30 | AF128: 0 | AG128: 0 | AH128: 0 | AI128: 0 | AJ128: 0 | AK128: 0 | AL128: 0 | AM128: 0 | AO128: suma
L129: =SUM(L128:O128) -> 165 | P129: =SUM(P128:S128) -> 225 | T129: =SUM(T128:W128) -> 120 | X129: =SUM(X128:AA128) -> 210 | AB129: =SUM(AB128:AE128) -> 120 | AF129: =SUM(AF128:AI128) -> 0 | AJ129: =SUM(AJ128:AM128) -> 0 | AO129: =SUM(AN108:AN127) -> 102
A130: PODSUMOWANIE ARKUSZA 1+2+3 | D130: egza-mi-nów | E130: zali-czeń | F130: pkt. ECTS | G130: Razem | H130: W | I130: Ć | J130: L | K130: P / S | L130: sem. I | P130: sem. II | T130: sem. III | X130: sem. IV | AB130: sem. V | AF130: sem. VI | AJ130: sem. VII
L131: W | M131: Ć | N131: L | O131: P/S | P131: W | Q131: Ć | R131: L | S131: P/S | T131: W | U131: Ć | V131: L | W131: P/S | X131: W | Y131: Ć | Z131: L | AA131: P/S | AB131: W | AC131: Ć | AD131: L | AE131: P/S | AF131: W | AG131: Ć | AH131: L | AI131: P/S | AJ131: W | AK131: Ć | AL131: L | AM131: P/S
D133: =SUM(D25+D128+D70) -> 12 | E133: =SUM(E25+E128+E70) -> 69 | F133: =SUM(F70+F128+F25) -> 165 | G133: =SUM(G128+G70+G25) -> 1665 | H133: =SUM(H25+H128+H70) -> 735 | I133: =SUM(I25+I128+I70) -> 285 | J133: =SUM(J25+J128+J70) -> 555 | K133: =SUM(K25+K128+K70) -> 90 | L133: =SUM(L70+L128+L25) -> 210 | M133: 75 | N133: 90 | O133: 0 | P133: 180 | Q133: 60 | R133: 150 | S133: 0 | T133: 135 | U133: 90 | V133: 90 | W133: 15 | X133: 120 | Y133: 60 | Z133: 120 | AA133: 45 | AB133: =SUM(AB70+AB128+AB25) -> 45 | AC133: 0 | AD133: 75 | AE133: 30 | AF133: 0 | AG133: 0 | AH133: 30 | AI133: 0 | AJ133: 45 | AK133: 0 | AL133: 0 | AM133: 0 | AN133: suma
L134: =SUM(L133:O133) -> 375 | P134: =SUM(P133:S133) -> 390 | T134: =SUM(T133:W133) -> 330 | X134: =SUM(X133:AA133) -> 345 | AB134: =SUM(AB133:AE133) -> 150 | AF134: =SUM(AF133:AI133) -> 30 | AJ134: =SUM(AJ133:AM133) -> 45 | AN134: =SUM(L134:AM134) -> 1665
D135: Liczba: | G135: egzaminów | L135: 2 | P135: 3 | T135: 3 | X135: 3 | AB135: 0 | AF135: 1 | AJ135: 0 | AN135: =SUM(L135:AM135) -> 12
G136: zaliczeń | L136: 12 | P136: 13 | T136: 12 | X136: 17 | AB136: 8 | AF136: 2 | AJ136: 5 | AN136: 69
G137: pkt. ECTS | L137: 30 | P137: 30 | T137: 30 | X137: 30 | AB137: 13 | AF137: 11 | AJ137: 21 | AN137: 165
A139: UWAGI: | AC139: Obowiązuje od roku akademickiego: 2018/2019
B140: 1. | C140: Dla studentów I roku studiów stacjonarnych I stopnia wszystkie formy zajęć dydaktycznych przewidziane w planie studiów są obowiązkowe. Na wyższych latach obowiązkowe są: ćwiczenia audytoryjne i laboratoryjne,
C141: lektoraty, zajęcia: sportowe, terenowe, projektowe, plenerowe i seminaria. | AC141: Legenda:
B142: 2. | C142: Język obcy do wyboru spośród: 1. Język angielski, 2. Język niemiecki, | AC142: W | AD142: - wykład
B143: 3. | C143: Przedmioty humanistyczne do wyboru spośród: semestr I: 1. Psychologia, 2. Filozofia; semestr II: 1. Elementy prawa, 2. Socjologia ogólna, | AC143: Ć | AD143: - ćwiczenia audytoryjne
B144: 4. | C144: Wychowanie fizyczne - studenci dokonują wyboru jednej formy zajęć z oferty SWFiSW. | AC144: L | AD144: - ćwiczenia laboratoryjne, lektorat języków obcych
B145: 5. | C145: Studentów obowiązuje zaliczenie: 1 dzień w tygodniu praktyki zawodowej podczas III sem. (2pkt. ECTS); 1 dzień w tygodniu praktyki zawodowej podczas IV sem. (2 pkt. ECTS) oraz 6 tygodni praktyki zawodowej po IV sem. (6 pkt. ECTS); 2 dni w tygodniu praktyki zawodowej podczas V sem. (4 pkt. ECTS); 2 dni w tygodniu praktyki zawodowej podczas VI sem. (4 pkt. ECTS) oraz 6 tygodni praktyki zawodowej po VI sem. (6 pkt ECTS); 2 dni w tygodniu praktyki zawodowej podczas VII sem. (4 pkt. ECTS). | AC145: P S T | AD145: - ćwiczenia projektowe - seminarium - zajęcia terenowe
AD146: - egzamin
AB149: ARKUSZ 3
D150: PLAN STUDIÓW NR I | AB150: ZATWIERDZAM
A151: WYDZIAŁ INŻYNIERII MECHANICZNEJ
D152: PROFIL KSZTAŁCENIA: | I152: PRAKTYCZNY
D153: POZIOM STUDIÓW: | I153: PIERWSZEGO STOPNIA (3,5-letnie inżynierskie)
A154: UNIWERSYTET TECHNOLOGICZNO-PRZYRODNICZY | D154: FORMA STUDIÓW: | I154: STUDIA STACJONARNE | AB154: PROREKTOR
A155: IM. J. i J. ŚNIADECKICH | D155: KIERUNEK: | I155: PRZETWÓRSTWO TWORZYW SZTUCZNYCH | AB155: ds. Dydaktycznych i Studenckich
A156: W BYDGOSZCZY | D156: SPECJALNOŚĆ: | I156: 1. TECHNOLOGICZNA
AB158: Bydgoszcz dn. ……………………..
A160: Pozycja planu | B160: NAZWA PRZEDMIOTU | D160: Liczba | G160: GODZINY | L160: ROZKŁAD ZAJĘĆ w SEMESTRZE
G161: Razem | H161: w tym | L161: sem. I | P161: sem. II | T161: sem. III | X161: sem. IV | AB161: sem. V | AF161: sem. VI | AJ161: sem. VII
D162: egza-mi-nów | E162: zali-czeń | F162: pkt. ECTS | H162: W | I162: Ć | J162: L | K162: P / S | L162: Liczba godzin tygodniowo (semestr I - VII po 15 tygodni)
L163: W | M163: Ć | N163: L | O163: P/S | P163: W | Q163: Ć | R163: L | S163: P/S | T163: W | U163: Ć | V163: L | W163: P/S | X163: W | Y163: Ć | Z163: L | AA163: P/S | AB163: W | AC163: Ć | AD163: L | AE163: P/S | AF163: W | AG163: Ć | AH163: L | AI163: P/S | AJ163: W | AK163: Ć | AL163: L | AM163: P/S
A165: D.1 | B165: PRZEDMIOTY SPECJALNOŚCIOWE | AN165: suma
A166: 1. | B166: Technologie przyrostowe w produkcji wyrobów z tworzyw | E166: 2 | F166: 3 | G166: =SUM(H166:K166) -> 30 | H166: =L166+P166+T166+X166+AB166+AF166+AJ166 -> 15 | J166: =N166+R166+V166+Z166+AD166+AH166+AL166 -> 15 | AB166: 15 | AD166: 15 | AN166: =sumaECTS(L166:AM166) -> 3
G167: =SUM(H167:K167) -> 0 | H167: =L167+P167+T167+X167+AB167+AF167+AJ167 -> 0 | J167: =N167+R167+V167+Z167+AD167+AH167+AL167 -> 0 | AN167: =sumaECTS(L167:AM167) -> 0
G168: 0 | H168: 0 | J168: 0 | AN168: 0
G169: 0 | H169: 0 | J169: 0 | AN169: 0
A170: 2. | B170: Maszyny i urządzenia do przetwórstwa tworzyw | D170: 1 | E170: 1 | F170: 6 | G170: 45 | H170: 30 | J170: 15 | AB170: 30 | AD170: 15 | AN170: 6
A171: 3 | G171: 0 | H171: 0 | J171: 0 | AN171: 0
G172: 0 | H172: 0 | J172: 0 | AN172: 0
G173: 0 | H173: 0 | J173: 0 | AN173: 0
A174: 3. | B174: Technologia wtryskiwania | D174: 1 | E174: 1 | F174: 5 | G174: 45 | H174: 30 | J174: 15 | AB174: 30 | AD174: 15 | AN174: 5
A175: 4 | G175: 0 | H175: 0 | J175: 0 | AN175: 0
A176: 5 | G176: 0 | H176: 0 | J176: 0 | AN176: 0
G177: 0 | H177: 0 | J177: 0 | AN177: 0 | AO177: =SUM(#REF!) -> 
A178: 4. | B178: Recykling materiałów i gospodarka odpadami | E178: 2 | F178: 3 | G178: 30 | H178: 15 | J178: 15 | AB178: 15 | AD178: 15 | AN178: 3
G179: 0 | H179: 0 | J179: 0 | K179: =O179+S179+W179+AA179+AE179+AI179+AM179 -> 0 | AN179: 0
A180: 6 | G180: 0 | H180: 0 | J180: 0 | K180: 0 | AN180: 0
A181: 7 | G181: 0 | H181: 0 | J181: 0 | K181: 0 | AN181: 0
A182: 5. | B182: Planowanie i utrzymanie produkcji | E182: 2 | F182: 2 | G182: 30 | H182: 15 | K182: 15 | AF182: 15 | AI182: 15 | AN182: 2
G183: 0 | H183: 0 | J183: 0 | K183: 0 | AN183: 0
G184: 0 | H184: 0 | J184: 0 | K184: 0 | AN184: 0
A185: 8 | G185: 0 | H185: 0 | J185: 0 | K185: 0 | AN185: 0
A186: 6. | B186: Komputerowe metody wspomagania procesów przetwórstwa tworzyw | E186: 3 | F186: 4 | G186: 60 | H186: 15 | J186: 30 | K186: 15 | AF186: 15 | AH186: 30 | AI186: 15 | AN186: 4
A187: 7. | B187: Narzedzia do przetwórstwa tworzyw | D187: 1 | E187: 3 | F187: 5 | G187: 105 | H187: 30 | J187: 15 | K187: 60 | AF187: 30 | AH187: 15 | AI187: 30 | AM187: 30 | AN187: 5
A188: 8. | B188: Metody modyfikacji tworzyw polimerowych | D188: 1 | E188: 1 | F188: 2 | G188: 30 | H188: 15 | J188: 15 | AF188: 15 | AH188: 15 | AN188: 2
A189: 9. | B189: Reologia stopów polimerowych | E189: 2 | F189: 2 | G189: 30 | H189: 15 | J189: 15 | AF189: 15 | AH189: 15 | AN189: 2
A190: 10. | B190: Inżynieria odwrotna | E190: 2 | F190: 1 | G190: 30 | H190: 15 | J190: 15 | AJ190: 15 | AL190: 15 | AN190: 1
A191: 11. | B191: Eksploatacja maszyn i narzedzi | D191: 1 | E191: 2 | F191: 2 | G191: 45 | H191: 15 | J191: 15 | K191: 15 | AJ191: 15 | AL191: 15 | AM191: 15 | AN191: 2
A192: 12. | B192: Automatyzacja i robotyzacja procesów przetwórstwa | E192: 2 | F192: 2 | G192: 45 | H192: 15 | J192: 30 | AJ192: 15 | AL192: 30 | AN192: =sumaECTS(L192:AM192) -> 2
G193: 0 | H193: 0 | J193: 0 | AN193: 0
G194: 0 | H194: 0 | J194: 0 | AN194: 0
A195: 13. | B195: Certyfikacja | D195: 1 | F195: 1 | G195: 20 | H195: 20 | AJ195: 20 | AN195: 1
A196: 14. | B196: Organizacja i zarządzanie energią | E196: 2 | F196: 1 | G196: 30 | H196: 15 | K196: 15 | AJ196: 15 | AM196: 15 | AN196: 1
A197: 15. | B197: Praca przejściowa (technologiczna) | E197: 1 | F197: 4 | G197: 30 | K197: 30 | AI197: 30 | AN197: 4
A198: 13 | B198: Moduł - Metrologia, strategia i certyfikacja - Certyfikacja opakowań z tworzyw | G198: 0 | K198: 0 | AN198: 0
B199: Moduł - Metrologia, strategia i certyfikacja - Tworzenie skutecznych strategii | G199: 0 | K199: 0 | AN199: 0 | AO199: =SUM(L205:AM205) -> 0
B200: Moduł - Metrologia, strategia i certyfikacja - Metrologia narzędzi przetwórstwa tworzyw | G200: 0 | K200: 0 | AN200: 0
A201: 16. | B201: Seminarium dyplomowe | E201: 2 | F201: 2 | G201: 30 | K201: 30 | AI201: 15 | AM201: 15 | AN201: 2
B202: RAZEM | D202: =SUM(D166:D201) -> 6 | E202: =SUM(E166:E201) -> 28 | F202: =SUM(F166:F201) -> 45 | G202: 635 | H202: 260 | I202: 0 | J202: 195 | K202: 180 | L202: =SUM(L166:L201)/2 -> 0 | M202: 0 | N202: 0 | O202: 0 | P202: 0 | Q202: 0 | R202: 0 | S202: 0 | T202: 0 | U202: 0 | V202: 0 | W202: 0 | X202: 0 | Y202: 0 | Z202: 0 | AA202: 0 | AB202: =SUM(AB166:AB201) -> 90 | AC202: 0 | AD202: =SUM(AD166:AD201) -> 60 | AE202: 0 | AF202: =SUM(AF166:AF201) -> 90 | AG202: 0 | AH202: =SUM(AH166:AH201) -> 75 | AI202: =SUM(AI166:AI201) -> 105 | AJ202: =SUM(AJ166:AJ201) -> 80 | AK202: 0 | AL202: =SUM(AL166:AL201) -> 60 | AM202: =SUM(AM166:AM201) -> 75 | AO202: suma
L203: 0 | P203: 0 | T203: 0 | X203: 0 | AB203: 150 | AF203: =SUM(AF202:AI202) -> 270 | AJ203: =SUM(AJ202:AM202) -> 215 | AO203: =SUM(AN166:AN201) -> 45
A204: PODSUMOWANIE ARKUSZA 1+2+3+4 | D204: egza-mi-nów | E204: zali-czeń | F204: pkt. ECTS | G204: Razem | H204: W | I204: Ć | J204: L | K204: P / S | L204: sem. I | P204: sem. II | T204: sem. III | X204: sem. IV | AB204: sem. V | AF204: sem. VI | AJ204: sem. VII
L205: W | M205: Ć | N205: L | O205: P/S | P205: W | Q205: Ć | R205: L | S205: P/S | T205: W | U205: Ć | V205: L | W205: P/S | X205: W | Y205: Ć | Z205: L | AA205: P/S | AB205: W | AC205: Ć | AD205: L | AE205: P/S | AF205: W | AG205: Ć | AH205: L | AI205: P/S | AJ205: W | AK205: Ć | AL205: L | AM205: P/S
D207: =D202+D128+D70+D25 -> 18 | E207: 97 | F207: =F202+F128+F70+F25 -> 210 | G207: 2300 | H207: 995 | I207: 285 | J207: 750 | K207: 270 | L207: 210 | M207: 75 | N207: 90 | O207: 0 | P207: 180 | Q207: 60 | R207: 150 | S207: 0 | T207: 135 | U207: 90 | V207: 90 | W207: 15 | X207: 120 | Y207: 60 | Z207: 120 | AA207: 45 | AB207: =SUM(AB30+AB75+AB128+AB202) -> 135 | AC207: =SUM(AC30+AC70+AC128+AC202) -> 0 | AD207: =SUM(AD25+AD70+AD128+AD202) -> 135 | AE207: =SUM(AE25,AE70,AE128+AE202) -> 30 | AF207: =SUM(AF25+AF70+AF128+AF202) -> 90 | AG207: 0 | AH207: 105 | AI207: 105 | AJ207: 125 | AK207: 0 | AL207: 60 | AM207: 75 | AN207: suma
L208: =SUM(L207:O207) -> 375 | P208: =SUM(P207:S207) -> 390 | T208: =SUM(T207:W207) -> 330 | X208: =SUM(X207:AA207) -> 345 | AB208: =SUM(AB207:AE207) -> 300 | AF208: =SUM(AF207:AI207) -> 300 | AJ208: =SUM(AJ207:AM207) -> 260 | AN208: =SUM(L208:AM208) -> 2300
D209: Liczba: | G209: egzaminów | L209: 2 | P209: 3 | T209: 3 | X209: 3 | AB209: 2 | AF209: 3 | AJ209: 2 | AN209: =SUM(L209:AM209) -> 18
G210: zaliczeń | L210: 12 | P210: 13 | T210: 12 | X210: 17 | AB210: 14 | AF210: 14 | AJ210: 15 | AN210: =SUM(L210:AM210) -> 97
G211: pkt. ECTS | L211: 30 | P211: 30 | T211: 30 | X211: 30 | AB211: 30 | AF211: 30 | AJ211: 30 | AN211: =SUM(L211:AM211) -> 210
A213: UWAGI: | AC213: Obowiązuje od roku akademickiego: 2018/2019
B214: 1. | C214: Dla studentów I roku studiów stacjonarnych I stopnia wszystkie formy zajęć dydaktycznych przewidziane w planie studiów są obowiązkowe. Na wyższych latach obowiązkowe są: ćwiczenia audytoryjne i laboratoryjne,
C215: lektoraty, zajęcia: sportowe, terenowe, projektowe, plenerowe i seminaria. | AC215: Legenda:
B216: 2. | C216: Język obcy do wyboru spośród: 1. Język angielski, 2. Język niemiecki, | AC216: W | AD216: - wykład
B217: 3. | C217: Przedmioty humanistyczne do wyboru spośród: semestr I: 1. Psychologia, 2. Filozofia; semestr II: 1. Elementy prawa, 2. Socjologia ogólna, | AC217: Ć | AD217: - ćwiczenia audytoryjne
B218: 4. | C218: Wychowanie fizyczne - studenci dokonują wyboru jednej formy zajęć z oferty SWFiSW. | AC218: L | AD218: - ćwiczenia laboratoryjne, lektorat języków obcych
B219: 5. | C219: Studentów obowiązuje zaliczenie: 1 dzień w tygodniu praktyki zawodowej podczas III sem. (2pkt. ECTS); 1 dzień w tygodniu praktyki zawodowej podczas IV sem. (2 pkt. ECTS) oraz 6 tygodni praktyki zawodowej po IV sem. (6 pkt. ECTS); 2 dni w tygodniu praktyki zawodowej podczas V sem. (4 pkt. ECTS); 2 dni w tygodniu praktyki zawodowej podczas VI sem. (4 pkt. ECTS) oraz 6 tygodni praktyki zawodowej po VI sem. (6 pkt ECTS); 2 dni w tygodniu praktyki zawodowej podczas VII sem. (4 pkt. ECTS). | AC219: P S T | AD219: - ćwiczenia projektowe - seminarium - zajęcia terenowe
AD220: - egzamin
AB223: ARKUSZ 4
D224: PLAN STUDIÓW NR I | AB224: ZATWIERDZAM
A225: WYDZIAŁ INŻYNIERII MECHANICZNEJ
... 61 more rows

Sheet punkty ECTS
B1: Wydział: | C1: INŻYNIERII MECHANICZNEJ
B2: PROFIL KSZTAŁCENIA: | C2: PROFIL PRAKTYCZNY
B3: POZIOM STUDIÓW: | C3: STUDIA PIERWSZEGO STOPNIA (3,5-letnie inżynierskie)
B4: FORMA STUDIÓW: | C4: STUDIA STACJONARNE
B5: KIERUNEK: | C5: PRZETWÓRSTWO TWORZYW SZTUCZNYCH
B6: SPECJALNOŚĆ: | C6: 1. TECHNOLOGICZNA
C7: 2. NARZEDZIOWA CAD/CAM
B8: Plan nr | C8: I
B9: Obowiązuje od roku akademickiego: | C9: 2018/2019
B11: szkolenie BHP - 4 godz.
A12: Lp. | B12: SEMESTR I | C12: w | D12: ćw | E12: l | F12: p | G12: ECTS
A13: 1. | B13: Przedmioty humanistyczne do wyboru3 | C13: 30 | G13: 2
A14: 2. | B14: Technologia informacyjna | C14: 15 | E14: 15 | G14: 3
A15: 3. | B15: BHP i ergonomia | C15: 15 | G15: 2
A16: 4. | B16: Matematyka inżynierska | C16: 30 | D16: 45 | G16: 6
A17: 5. | B17: Fizyka | C17: 30 | D17: 30 | G17: 5
A18: 6. | B18: Materiały inżynierskie z elementami chemii | C18: 45 | E18: 30 | G18: 6
A19: 7. | B19: Podstawy obróbki materiałów | E19: 15 | G19: 1
A20: 8. | B20: Podstawy maszynoznawstwa | C20: 15 | G20: 2
A21: 9. | B21: Grafika inżynierska | C21: 30 | E21: 30 | G21: 3
B22: suma | C22: =SUM(C13:C21) -> 210 | D22: =SUM(D13:D21) -> 75 | E22: =SUM(E13:E21) -> 90 | F22: =SUM(F13:F21) -> 0 | G22: =SUM(G13:G21) -> 30
C23: =SUM(C22:F22) -> 375
A24: Lp. | B24: SEMESTR II | C24: w | D24: ćw | E24: l | F24: p | G24: ECTS
A25: 1. | B25: Przedmioty humanistyczne do wyboru3 | C25: 15 | G25: 2
A26: 2. | B26: Matematyka inżynierska | C26: 30 | D26: 30 | G26: 5
A27: 3. | B27: Fizyka | E27: 15 | G27: 2
A28: 4. | B28: Mechanika techniczna | C28: 30 | D28: 30 | E28: 15 | G28: 6
A29: 5. | B29: Grafika inżynierska | E29: 30 | G29: 2
A30: 6. | B30: Metaloznawstwo | C30: 30 | E30: 30 | G30: 4
A31: 7. | B31: Elektrotechnika i elektronika | C31: 15 | E31: 15 | G31: 2
A32: 8. | B32: Tworzywa polimerowe | C32: 30 | E32: 30 | G32: 4
A33: 9. | B33: Obróbka cieplna i plastyczna | C33: 30 | E33: 15 | G33: 3
B34: suma | C34: =SUM(C25:C33) -> 180 | D34: =SUM(D25:D33) -> 60 | E34: =SUM(E25:E33) -> 150 | F34: =SUM(F25:F33) -> 0 | G34: =SUM(G25:G33) -> 30
C35: =SUM(C34:F34) -> 390
A36: Lp. | B36: SEMESTR III | C36: w | D36: ćw | E36: l | F36: p | G36: ECTS
A37: 1. | B37: Język obcy2 | E37: 30 | G37: 1
A38: 2. | B38: Wychowanie fizyczne4 | D38: 30 | G38: 0
A39: 3. | B39: Statystyka inżynierska | C39: 15 | D39: 15 | G39: 3
A40: 4. | B40: Podstawy konstrukcji maszyn | C40: 30 | D40: 30 | G40: 6
A41: 5. | B41: Mechanika płynów | C41: 30 | D41: 15 | E41: 15 | G41: 6
A42: 6. | B42: Technologie przetwórstwa tworzyw | C42: 30 | G42: 3
A43: 7. | B43: CAD | E43: 30 | F43: 15 | G43: 4
A44: 8. | B44: Obróbka skrawaniem | C44: 30 | E44: 15 | G44: 5
A45: 9. | B45: Praktyka zawodowa (1 DZIEŃ W TYGODNIU)5 | F45: 120 | G45: 2
B46: suma | C46: =SUM(C37:C45) -> 135 | D46: =SUM(D37:D45) -> 90 | E46: =SUM(E37:E45) -> 90 | F46: =SUM(F37:F44) -> 15 | G46: =SUM(G37:G45) -> 30
C47: =SUM(C46:F46) -> 330
A48: Lp. | B48: SEMESTR IV | C48: w | D48: ćw | E48: l | F48: p | G48: ECTS
A49: 1. | B49: Język obcy2 | E49: 30 | G49: 1
A50: 2. | B50: Wychowanie fizyczne4 | D50: 30 | G50: 0
A51: 3. | B51: Podstawy konstrukcji maszyn | C51: 15 | F51: 15 | G51: 3
A52: 4. | B52: Termodynamika techniczna | C52: 15 | D52: 15 | E52: 15 | G52: 4
A53: 5. | B53: Technologie przetwórstwa tworzyw | C53: 15 | D53: 15 | E53: 30 | G53: 4
A54: 6. | B54: Odlewnictwo i spawalnictwo | C54: 30 | E54: 15 | G54: 3
A55: 7. | B55: Metodyka Design Thinking | E55: 15 | F55: 15 | G55: 2
A56: 8. | B56: Systemy kontroli jakości | C56: 30 | F56: 15 | G56: 3
A57: 9. | B57: Metrologia | C57: 15 | E57: 15 | G57: 2
A58: 10. | B58: Praktyka (6 TYGODNI)5 | G58: 6
A59: 11. | B59: Praktyka zawodowa (1 DZIEŃ W TYGODNIU)5 | F59: 120 | G59: 2
B60: suma | C60: =SUM(C49:C59) -> 120 | D60: =SUM(D49:D59) -> 60 | E60: =SUM(E49:E59) -> 120 | F60: =SUM(F49:F58) -> 45 | G60: =SUM(G49:G59) -> 30
C61: =SUM(C60:F60) -> 345
A62: Lp. | B62: SEMESTR V sp.1 | C62: w | D62: ćw | E62: l | F62: p | G62: ECTS
A63: 1. | B63: Język obcy3 | E63: 30 | G63: 1
A64: 2. | B64: Zaawansowane techniki badań materiałów | C64: 15 | E64: 15 | G64: 3
A65: 3. | B65: Projektowanie i konstrukcja wytworów z tworzyw polimerowych | C65: 15 | F65: 30 | G65: 3
A66: 4. | B66: Metody elementów skończonych | C66: 15 | E66: 30 | G66: 3
A67: 5. | B67: Technologie przyrostowe w produkcji wytworów z tworzyw | C67: 15 | E67: 15 | G67: 3
A68: 6. | B68: Maszyny i urządzenia do przetwórstwa tworzyw | C68: 30 | E68: 15 | G68: 6
A69: 7. | B69: Technologia wtryskiwnia | C69: 30 | E69: 15 | G69: 5
A70: 8. | B70: Recykling materiałów i gospodarka odpadami | C70: 15 | E70: 15 | G70: 3
A71: 9. | B71: Praktyka zawodowa (2 DNI W TYGODNIU)5 | F71: 240 | G71: 3
B72: suma | C72: =SUM(C63:C71) -> 135 | D72: =SUM(D63:D71) -> 0 | E72: =SUM(E63:E71) -> 135 | F72: =SUM(F63:F70) -> 30 | G72: =SUM(G63:G71) -> 30
C73: =SUM(C72:F72) -> 300
A74: Lp. | B74: SEMESTR VI sp. 1 | C74: w | D74: ćw | E74: l | F74: p | G74: ECTS
A75: 1. | B75: Język obcy2 | E75: 30 | G75: 2
A76: 2. | B76: Planowanie i utrzymanie produkcji | C76: 15 | F76: 15 | G76: 2
A77: 3. | B77: Komputerowe metody wspomagania procesów przetwórstwa tworzyw | C77: 15 | E77: 30 | F77: 15 | G77: 4
A78: 4. | B78: Narzędzia do przetwórstwa tworzyw | C78: 30 | E78: 15 | F78: 30 | G78: 4
A79: 5. | B79: Metody modyfikacji tworzyw polimerowych | C79: 15 | E79: 15 | G79: 2
A80: 6. | B80: Reologia stopów polimerowych | C80: 15 | E80: 15 | G80: 2
A81: 7. | B81: Praca przejściowa (technologiczna) | F81: 30 | G81: 4
A82: 8. | B82: Seminarium dyplomowe | F82: 15 | G82: 1
A83: 9. | B83: Praktyka wakacyjna (6 TYGODNI)5 | G83: 6
A84: 10. | B84: Praktyka zawodowa (2 DNI W TYGODNIU)5 | F84: 240 | G84: 3
B85: suma | C85: =SUM(C75:C84) -> 90 | D85: =SUM(D75:D84) -> 0 | E85: =SUM(E75:E84) -> 105 | F85: =SUM(F75:F83) -> 105 | G85: =SUM(G75:G84) -> 30
C86: =SUM(C85:F85) -> 300
A87: Lp. | B87: SEMESTR VII sp. 1 | C87: w | D87: ćw | E87: l | F87: p | G87: ECTS
A88: 1. | B88: Ochrona własności intelektualnej | C88: 15 | G88: 1
A89: 2. | B89: Podstawy przedsiębiorczości | C89: 15 | G89: 1
A90: 3. | B90: Komunikacja społeczna | C90: 15 | G90: 1
A91: 4. | B91: Narzędzia do przetwórstwa tworzyw | F91: 30 | G91: 1
A92: 5. | B92: Inżynieria odwrotna | C92: 15 | E92: 15 | G92: 1
A93: 6. | B93: Eksploatacja maszyn i narzędzi | C93: 15 | E93: 15 | F93: 15 | G93: 2
A94: 7. | B94: Automatyzacja i robotyzacja procesów przetwórsta | C94: 15 | E94: 30 | G94: 2
A95: 8. | B95: Certyfikacja | C95: 20 | G95: 1
A96: 9. | B96: Organizacja i zarządzanie energią | C96: 15 | F96: 15 | G96: 1
A97: 10. | B97: Seminarium dyplomowe | F97: 15 | G97: 1
A98: 11. | B98: Przygotowanie i złożenie pracy dyplomowej oraz przygotowanie do egzaminu dyplomowego | G98: 15
A99: 12. | B99: Praktyka zawodowa (2 DNI W TYGODNIU)5 | F99: 240 | G99: 3
B100: suma | C100: =SUM(C88:C99) -> 125 | D100: =SUM(D88:D99) -> 0 | E100: =SUM(E88:E99) -> 60 | F100: =SUM(F88:F98) -> 75 | G100: =SUM(G88:G99) -> 30
C101: =SUM(C100:F100) -> 260
A102: Lp. | B102: SEMESTR V sp. 2 | C102: w | D102: ćw | E102: l | F102: p | G102: ECTS
A103: 1. | B103: Język obcy2 | E103: 30 | G103: 1
A104: 2. | B104: Zaawansowane techniki badań materiałów | C104: 15 | E104: 15 | G104: 3
A105: 3. | B105: Projektowanie i konstrukcja wytworów z tworzyw polimerowych | C105: 15 | F105: 30 | G105: 3
A106: 4. | B106: Metody elementów skończonych | C106: 15 | E106: 30 | G106: 3
A107: 5. | B107: Technologie przyrostowe w budowie narzędzi do przetwórstwa tworzyw | C107: 15 | E107: 15 | G107: 2
A108: 6. | B108: CAD w projektowaniu narzędzi | E108: 30 | F108: 15 | G108: 5
A109: 7. | B109: Materiały stosowane do konstrukcji narzędzi | C109: 15 | E109: 15 | G109: 5
A110: 8. | B110: Technologie obróbki metali | C110: 30 | E110: 15 | G110: 5
A111: 9. | B111: Praktyka zawodowa (2 DNI W TYGODNIU)5 | F111: 240 | G111: 3
B112: suma | C112: =SUM(C103:C111) -> 105 | D112: =SUM(D103:D111) -> 0 | E112: =SUM(E103:E111) -> 150 | F112: =SUM(F103:F110) -> 45 | G112: =SUM(G103:G111) -> 30
C113: =SUM(C112:F112) -> 300
A114: Lp. | B114: SEMESTR VI sp. 2 | C114: w | D114: ćw | E114: l | F114: p | G114: ECTS
A115: 1. | B115: Język obcy2 | E115: 30 | G115: 2
A116: 2. | B116: Komputerowe wspomaganie projektowania narzędzi | C116: 15 | E116: 30 | F116: 15 | G116: 4
A117: 3. | B117: Konstrukcja form wtryskowych | C117: 30 | E117: 30 | F117: 15 | G117: 4
A118: 4. | B118: CAM | C118: 15 | E118: 15 | F118: 15 | G118: 4
A119: 5. | B119: Technologie wytwarzania form wtryskowych | C119: 30 | E119: 15 | G119: 2
A120: 6. | B120: Praca przejściowa (konstrukcyjna) | F120: 30 | G120: 4
A121: 7. | B121: Seminarium dyplomowe | F121: 15 | G121: 1
A122: 8. | B122: Praktyka wakacyjna (6 TYGODNI)5 | G122: 6
A123: 9. | B123: Praktyka zawodowa (2 DNI W TYGODNIU)5 | F123: 240 | G123: 3
B124: suma | C124: =SUM(C115:C123) -> 90 | D124: =SUM(D115:D123) -> 0 | E124: =SUM(E115:E123) -> 120 | F124: =SUM(F115:F122) -> 90 | G124: =SUM(G115:G123) -> 30
C125: =SUM(C124:F124) -> 300
A126: Lp. | B126: SEMESTR VII sp. 2 | C126: w | D126: ćw | E126: l | F126: p | G126: ECTS
A127: 1. | B127: Ochrona własności intelektualnej | C127: 15 | G127: 1
A128: 2. | B128: Podstawy przedsiębiorczości | C128: 15 | G128: 1
A129: 3. | B129: Komunikacja społeczna | C129: 15 | G129: 1
A130: 4. | B130: Konstrukcja głowic wytłaczarskich form rozdmuchowych | C130: 15 | E130: 30 | F130: 15 | G130: 2
A131: 5. | B131: CAM w wytwarzaniu narzedzi | E131: 15 | F131: 15 | G131: 1
A132: 6. | B132: Techniki pomiarowe | C132: 15 | E132: 15 | G132: 1
A133: 7. | B133: Sterowanie maszyn | C133: 15 | E133: 30 | G133: 2
A134: 8. | B134: Zarządzanie projektami | C134: 20 | F134: 15 | G134: 2
A135: 9. | B135: Seminarium dyplomowe | F135: 15 | G135: 1
A136: 10. | B136: Przygotowanie i złożenie pracy dyplomowej oraz przygotowanie do egzaminu dyplomowego | G136: 15
A137: 11. | B137: Praktyka zawodowa (2 DNI W TYGODNIU)5 | F137: 240 | G137: 3
B138: suma | C138: =SUM(C127:C137) -> 110 | D138: =SUM(D127:D137) -> 0 | E138: =SUM(E127:E137) -> 90 | F138: =SUM(F127:F136) -> 60 | G138: =SUM(G127:G137) -> 30
C139: =SUM(C138:F138) -> 260
C141: suma | D141: =SUM(C23+C35+C47+C61+C73+C86+C101) -> 2300
D142: =SUM(C23+C35+C47+C61+C113+C125+C139) -> 2300

Sheet analiza
A1: ANALIZA ZGODNOŚCI PLANU STUDIÓW
A2: Z WYTYCZNYMI DO PROJEKTOWANIA I MODYFIKACJI PROGRAMÓW STUDIÓW W UTP
B4: Jednostka prowadząca kierunek studiów | E4: Wydział Inżynierii Mechanicznej
B5: Nazwa kierunku studiów | E5: Przetwórstwo Tworzyw Sztucznych
B6: Specjalność | E6: 1. Technologiczna
E7: 2. Narzędziowa CAD/CAM
B8: Rok akademicki, od którego obowiązuje plan studiów | E8: 2018/2019
B9: Numer planu studiów | E9: I
B10: Forma studiów | E10: studia stacjonarne
B11: Poziom studiów | E11: studia pierwszego stopnia (3,5-letnie inżynierskie)
B12: OGÓLNA LICZBA GODZIN | E12: 2300 | F12: OGÓLNA LICZBA PKT. ECTS | J12: 210
B13: B I L A N S G O D Z I N I P U N K T Ó W E C T S 1
B14: Przedmiot/moduł | F14: Godziny | H14: Pozycje planu | I14: Punkty ECTS
F15: Liczba | G15: % | I15: Liczba | J15: %
B16: Zajęcia z obszaru nauk humanistycznych i nauk społecznych łącznie: | F16: =SUM(F17:F19) -> 105 | G16: =SUM(G17:G19) -> 0.04565217391 | I16: =SUM(I17:I19) -> 9 | J16: =SUM(J17:J19) -> 0.04285714286
B17: 1. | C17: w tym w zakresie ochrony własności intelektualnej i/lub bezpieczeństwa i higieny pracy 2 | F17: 30 | G17: =F17/E12 -> 0.01304347826 | H17: A.5; A.6 | I17: 3 | J17: =I17/J12 -> 0.01428571429
B18: 2. | C18: w tym w zakresie podstaw przedsiębiorczości i uzyskiwania tzw. kompetencji miękkich 2 | F18: 30 | G18: =F18/E12 -> 0.01304347826 | H18: A.7; A.8 | I18: 2 | J18: =I18/J12 -> 0.009523809524
B19: 3. | C19: w tym inne zajęcia z zakresu nauk humanistycznych i nauk społecznych, nieujęte w pkt 1 i 2 | F19: 45 | G19: =F19/E12 -> 0.01956521739 | H19: A.2 | I19: 4 | J19: =I19/J12 -> 0.01904761905
B20: Zajęcia z języków obcych | F20: 120 | G20: =F20/E12 -> 0.05217391304 | H20: A.1 | I20: 5 | J20: =I20/J12 -> 0.02380952381
B21: Zajęcia z wychowania fizycznego | F21: 60 | G21: =F21/E12 -> 0.02608695652 | H21: A.3 | I21: x | J21: x
B22: Zajęcia z technologii informacyjnych 2 | F22: 30 | G22: =F22/E12 -> 0.01304347826 | H22: A.4 | I22: 3 | J22: =I22/J12 -> 0.01428571429
B23: Seminarium dyplomowe | F23: 30 | G23: =F23/E12 -> 0.01304347826 | H23: D1.16; D2.15 | I23: 2 | J23: =I23/J12 -> 0.009523809524
B24: Praktyka zawodowa 3 | F24: x | G24: x | H24: C.18 | I24: 25 | J24: =I24/J12 -> 0.119047619
B25: Przygotowanie i złożenie pracy dyplomowej oraz przygotowanie do egzaminu dyplomowego | F25: x | G25: x | H25: C.19 | I25: 15 | J25: =I25/J12 -> 0.07142857143
B27: Zajęcia do wyboru (co najmniej 30% ECTS) | F27: 860 | G27: =F27/E12 -> 0.3739130435 | H27: A.1; A.2; A.3; C.18; C.19; D.1; D.2 | I27: 94 | J27: =I27/J12 -> 0.4476190476
B30: Zajęcia wymagające bezpośredniego udziału nauczyciela akademickiego | F30: x | G30: x | I30: 126 | J30: =I30/J12 -> 0.6
B32: Zajęcia powiązane z prowadzonymi badaniami naukowymi w dziedzeninie nauki / sztuki związanej z kierunkiem studiów służące zdobywaniu pogłębionej wiedzy i umiejętności prowadzenia badań naukowych (ponad 50% ogólnej liczby pkt. ECTS) 4 | F32: x | G32: x | I32: x | J32: x
B34: Zajęcia powiązane z praktycznym przygotowaniem zawodowym służące zdobywaniu umiejętności praktycznych i kompetencji społecznych, prowadzone w warunkach właściwych dla danego zakresu działalności zawodowej, w sposób umożliwiający wykonywanie określonych czynności praktycznych i przez osoby, z których większość posiada doświadczenie zawodowe zdobyte poza uczelnią odpowiadające zakresowi tych zajęć (ponad 50% ogólnej liczby pkt. ECTS) 5 | F34: 1350 | G34: =F34/E12 -> 0.5869565217 | I34: 126 | J34: =I34/J12 -> 0.6
B36: Procentowy udział liczby punktów ECTS dla obszarów kształcenia w programie studiów dla kierunków przyporządkowanych do więcej niż jednego obszaru kształcenia
B37: 1. obszar kształcenia w zakresie nauk technicznych | I37: 1
B38: ŁĄCZNIE: | I38: 100% pkt. ECTS
B45: 1 w ogólnej liczbie godzin i punktów ECTS przewidzianych w planie studiów
B46: 2 niewymagane dla studiów II stopnia | F46: ……………………………………………
B47: 3 niewymagane na studiach II stopnia o profilu ogólnoakademickim | F47: pieczątka i podpis kierownika samodzielnej jednostki
B48: 4dotyczy jedynie studiów o profilu ogólnoakademickim, wymagana realizacja zajęć powiązanych z prowadzonymi badaniami naukowymi w dziedzinie wyszczególnionej w opisie efektów kształcenia w wymiarze ponad 50% ogólnej liczby pkt. ECTS (wymagane dostosowanie programów prowadzonych kierunków/ poziomów studiów zgodnie z terminem określonym w pkt VII.5 wytycznych Senatu)
B49: 5dotyczy jedynie studiów o profilu praktycznym, wymagana realizacja zajęć powiązanych z praktycznym przygotowaniem zawodowym w wymiarze ponad 50% ogólnej liczby pkt. ECTS (wymagane dostosowanie programów prowadzonych kierunków /poziomów studiów zgodnie z terminem określonym w pkt VII.5 wytycznych Senatu) | F49: ZATWIERDZAM
F50: ………………………………………………………
F51: Prorektor ds. Dydaktycznych i Studenckich
